bitfinex-derivatives/quotes_BNBF0:USTF0_20250116
["timestamp","ask_amount","ask_price","bid_price","bid_amount"]
[1737046178535,0.2804813,713.06,711.89,0.74436281]
[1737046178736,0.2804813,713.06,711.9,0.74436281]
[1737046179036,0.2804813,713.06,711.91,0.74436281]
[1737046179235,0.2804813,713.06,711.92,0.74436281]
[1737046179435,0.2804813,713.06,711.93,0.74436281]
[1737046179634,0.2804813,713.06,711.94,0.74436281]
[1737046179836,0.2804813,713.06,711.95,0.74436281]
[1737046180035,0.2804813,713.06,711.96,0.74436847]
[1737046180234,0.2804813,713.06,711.82,0.2809699]
[1737046180437,1.04978261,713.04,711.83,0.25797815]
[1737046180837,1.04978261,713.04,711.84,0.25796861]
[1737046181039,1.04978261,713.04,711.85,0.74465316]
[1737046181235,1.04978261,713.04,711.86,0.74465316]
[1737046181439,1.33026391,713.06,711.87,0.48668455]
[1737046181634,1.33026391,713.06,711.88,0.48668455]
[1737046181836,1.33026391,713.06,711.89,0.48668455]
[1737046182036,1.33026391,713.06,711.9,0.48668455]
[1737046182334,1.33026391,713.06,711.91,0.48664955]
[1737046182538,1.33026391,713.06,711.92,0.48664955]
[1737046182733,1.33026391,713.06,711.93,0.48664955]
[1737046182940,0.2804813,713.06,711.94,0.48664955]
[1737046183139,0.2804813,713.06,711.95,0.48664955]
[1737046183438,0.2804813,713.06,711.96,0.48664955]
[1737046183639,0.2804813,713.06,711.97,0.48664955]
[1737046183839,0.2804813,713.06,711.98,0.48664955]
[1737046184033,0.2804813,713.06,711.99,0.48664955]
[1737046184234,0.2804813,713.06,712.0,0.48664955]
[1737046184532,0.2804813,713.06,712.01,0.48664955]
[1737046184738,0.2804813,713.06,712.02,0.48664955]
[1737046184934,0.2804813,713.06,712.03,0.48664955]
[1737046185141,0.2804813,713.06,712.04,0.48664955]
[1737046185341,0.2804813,713.06,712.05,0.48664955]
[1737046185640,0.2804813,713.06,712.06,0.48664955]
[1737046185837,0.2804813,713.06,712.07,0.48664955]
[1737046186038,0.2804813,713.06,712.08,0.48664955]
[1737046186233,0.2804813,713.06,712.09,0.48664955]
[1737046186438,0.2804813,713.06,712.1,0.48664955]
[1737046186734,0.2804813,713.06,712.11,0.48664955]
[1737046186935,0.2804813,713.06,712.12,0.48664955]
[1737046187137,0.2804813,713.06,712.13,0.48664955]
[1737046187332,0.2804813,713.06,712.14,0.48664955]
[1737046187534,0.2804813,713.06,712.15,0.48664955]
[1737046187840,1.04978261,713.04,712.16,0.48664955]
[1737046188040,1.04978261,713.04,712.17,0.48664955]
[1737046188243,1.04978261,713.04,712.18,0.48664955]
[1737046188441,1.04978261,713.04,712.19,0.48664955]
[1737046188636,1.04978261,713.04,711.82,0.2809699]
[1737046188637,1.04978261,713.04,712.2,0.48664955]
[1737046188841,1.04978261,713.04,712.21,0.48664955]
[1737046189139,0.2804813,713.06,712.22,0.48664955]
[1737046189339,0.2804813,713.06,712.23,0.48664955]
[1737046189537,0.2804813,713.06,712.24,0.48664955]
[1737046189740,0.2804813,713.06,712.25,0.48664955]
[1737046189938,0.2804813,713.06,712.26,0.48664955]
[1737046190141,0.2804813,713.06,712.27,0.48664955]
[1737046190338,0.2804813,713.06,711.82,0.2809699]
[1737046190339,1.33026391,713.06,712.28,0.48664955]
[1737046190640,1.33026391,713.06,712.29,0.48664955]
[1737046190842,1.33026391,713.06,712.3,0.48664955]
[1737046191042,1.33026391,713.06,712.31,0.48664955]
[1737046191244,1.04978261,713.05,712.32,0.48664955]
[1737046191438,1.04978261,713.05,712.33,0.48664955]
[1737046191739,1.04978261,713.05,712.34,0.48664955]
[1737046192046,1.04978261,713.05,712.35,0.48664955]
[1737046192347,1.04978261,713.0,712.36,0.48664955]
[1737046192539,1.04978261,713.0,712.37,0.48664955]
[1737046192742,1.04978261,713.0,712.38,0.48664955]
[1737046192940,1.04978261,713.0,712.39,0.48664955]
[1737046193139,1.04978261,713.0,712.4,0.48664955]
[1737046193339,1.04978261,713.0,712.41,0.48664955]
[1737046193540,1.04978261,713.0,712.42,0.48664955]
[1737046193846,1.04978261,713.0,712.43,0.48664955]
[1737046194045,1.04978261,713.0,712.44,0.48664955]
[1737046194238,1.04978261,713.0,712.45,0.48664955]
[1737046194441,1.04978261,712.99,712.46,0.48664955]
[1737046194642,1.04978261,712.99,712.47,0.48664955]
[1737046194844,1.04978261,712.99,712.48,0.48664955]
[1737046195145,1.04978261,712.99,711.93,1.04252781]
[1737046195345,1.04978261,712.98,711.94,0.48679711]
[1737046195545,1.04978261,712.98,711.95,0.48679711]
[1737046195740,1.04978261,712.98,711.96,0.48679711]
[1737046195939,1.04978261,712.98,711.97,0.48679711]
[1737046196141,1.04978261,712.98,711.98,0.48679711]
[1737046196344,1.04978261,712.98,711.99,0.48679711]
[1737046196545,1.04978261,712.98,712.0,0.48679711]
[1737046196746,1.04978261,712.94,712.01,0.48679711]
[1737046196946,1.04978261,712.94,712.02,0.48679711]
[1737046197244,1.04978261,712.94,712.03,0.48679711]
[1737046197444,1.04978261,712.94,712.04,0.48676842]
[1737046197640,1.04978261,712.94,712.05,0.48676842]
[1737046197845,0.2804813,713.06,712.06,0.48676842]
[1737046197846,1.04978261,712.93,712.06,0.48676842]
[1737046198146,1.04978261,712.93,712.07,0.48676842]
[1737046198343,1.04978261,712.93,712.08,0.48676842]
[1737046198541,1.04978261,712.92,712.09,0.48676842]
[1737046198741,1.04978261,712.92,712.1,0.48676842]
[1737046198942,1.04978261,712.92,712.11,0.48676842]
[1737046199140,1.04978261,712.92,712.12,0.48676842]
[1737046199343,1.04978261,712.92,711.97,1.04252781]
[1737046199344,1.04978261,712.92,712.13,0.48676842]
[1737046199540,1.04978261,712.92,711.97,1.04252781]
[1737046199541,1.04978261,712.92,712.14,0.48676842]
[1737046199744,0.2804813,713.06,712.15,0.48676842]
[1737046199745,1.04978261,712.9,712.15,0.48676842]
[1737046200045,1.04978261,712.9,712.16,0.48676842]
[1737046200244,1.04978261,712.9,712.17,0.48676842]
[1737046200439,1.04978261,712.9,712.18,0.48676842]
[1737046200646,1.04978261,712.9,712.19,0.48676842]
[1737046200841,1.04978261,712.95,712.2,0.48676842]
[1737046201045,1.04978261,712.95,712.21,0.48676842]
[1737046201343,1.04978261,712.95,711.85,1.04252781]
[1737046201945,1.04978261,712.98,711.89,1.04252781]
[1737046202346,0.2804813,713.06,711.82,0.2809699]
[1737046202746,0.2804813,713.06,711.83,0.25795189]
[1737046203143,0.2804813,713.06,711.84,0.48708305]
[1737046203448,0.2804813,713.06,711.85,0.74503494]
[1737046203646,0.2804813,713.06,711.86,0.48708305]
[1737046203846,0.2804813,713.06,711.87,0.74503494]
[1737046204048,1.05214973,712.99,711.91,1.04599289]
[1737046204248,1.05214973,712.99,711.92,0.48708305]
[1737046204447,1.05214973,712.99,711.93,0.48708305]
[1737046204749,1.05214973,712.99,711.94,0.48708305]
[1737046205049,1.05214973,712.99,711.95,0.48708305]
[1737046205251,1.05214973,712.96,711.96,0.48708305]
[1737046205543,1.05214973,712.96,711.92,1.04599289]
[1737046205544,1.05214973,712.96,711.97,0.48708305]
[1737046205746,1.05214973,712.96,711.98,0.48708305]
[1737046205950,1.05214973,712.96,711.99,0.48708305]
[1737046206146,1.05214973,712.96,712.0,0.48708305]
[1737046206349,1.05214973,712.96,711.92,1.04599289]
[1737046206350,1.05214973,712.96,712.01,0.48708305]
[1737046206545,1.05214973,712.94,712.02,0.48708305]
[1737046206743,1.05214973,712.94,712.03,0.48708305]
[1737046206955,1.05214973,712.94,712.04,0.48708305]
[1737046207251,1.05214973,712.94,712.05,0.48708305]
[1737046207450,1.05214973,712.94,712.06,0.48708305]
[1737046207652,1.05214973,712.94,712.07,0.48708305]
[1737046207852,1.05214973,712.94,712.08,0.48708305]
[1737046208047,1.05214973,712.94,712.09,0.48708305]
[1737046208251,1.05214973,712.94,712.1,0.48708305]
[1737046208451,1.05214973,712.94,712.11,0.48708305]
[1737046208645,1.05214973,712.94,712.12,0.48708305]
[1737046208845,1.05214973,712.94,712.13,0.48708305]
[1737046209050,1.05214973,712.93,712.14,0.48708305]
[1737046209249,1.05214973,712.93,712.15,0.48708305]
[1737046209450,1.05214973,712.93,712.16,0.48708305]
[1737046209647,1.05214973,712.93,712.17,0.48708305]
[1737046209951,1.05214973,712.93,712.18,0.48708305]
[1737046210250,1.05214973,712.93,712.19,0.48825266]
[1737046210450,1.05214973,712.93,711.91,1.04599289]
[1737046210451,1.05214973,712.93,712.2,0.48825266]
[1737046210647,1.05214973,712.93,712.21,0.48825266]
[1737046210854,1.05214973,712.93,712.22,0.48825266]
[1737046211047,1.05214973,712.93,712.23,0.48825266]
[1737046211246,1.05214973,712.93,712.24,0.48825266]
[1737046211547,0.2804813,713.06,712.25,0.48825266]
[1737046211548,1.05214973,712.82,712.25,0.48825266]
[1737046211752,1.05214973,712.82,712.26,0.48825266]
[1737046211948,1.05214973,712.82,712.27,0.48825266]
[1737046212150,1.05214973,712.82,712.28,0.48825266]
[1737046212454,1.05214973,712.81,712.29,0.48825266]
[1737046212652,1.05214973,712.81,712.3,0.48825266]
[1737046212852,1.05214973,712.81,712.31,0.48825266]
[1737046213152,1.05214973,712.81,712.32,0.48825266]
[1737046213353,1.05214973,712.79,712.33,0.48825266]
[1737046213553,1.05214973,712.79,712.34,0.48825266]
[1737046213751,1.05214973,712.79,712.35,0.48825266]
[1737046214053,1.05214973,712.79,712.36,0.48825266]
[1737046214352,1.05214973,712.85,712.37,0.48825266]
[1737046214551,1.05214973,712.85,712.38,0.48825266]
[1737046214751,1.05214973,712.85,712.39,0.48825266]
[1737046214948,1.05214973,712.85,712.4,0.48825266]
[1737046215148,1.05214973,713.03,712.41,0.48825266]
[1737046215149,1.05214973,712.84,712.41,0.48825266]
[1737046215353,1.05214973,712.84,712.42,0.48825266]
[1737046215648,1.05214973,712.84,712.43,0.48825266]
[1737046215848,1.05214973,712.84,712.44,0.48825266]
[1737046216054,1.05214973,712.84,712.45,0.48825266]
[1737046216252,1.05214973,712.84,712.46,0.48825266]
[1737046216452,1.05214973,712.86,712.47,0.48825266]
[1737046216749,1.05214973,712.86,712.48,0.48825266]
[1737046216950,1.05214973,712.86,712.49,0.48825266]
[1737046217151,1.05214973,712.86,712.5,0.48825266]
[1737046217457,1.05214973,712.87,712.51,0.48825266]
[1737046217756,1.05214973,712.87,712.52,0.48825266]
[1737046217957,1.05214973,712.87,712.53,0.48825266]
[1737046218158,1.05214973,712.87,712.54,0.48825266]
[1737046218360,1.05214973,712.87,712.55,0.48825266]
[1737046218557,1.05214973,712.87,711.82,0.2809699]
[1737046218558,1.05214973,712.87,712.56,0.48825266]
[1737046218858,1.05214973,712.87,712.57,0.48825266]
[1737046219059,1.05214973,712.87,712.58,0.48825266]
[1737046219260,1.05214973,712.87,712.59,0.48825266]
[1737046219459,1.05214973,712.87,712.6,0.48825266]
[1737046219661,1.05214973,712.86,712.61,0.48825266]
[1737046219858,1.05214973,712.86,712.62,0.48825266]
[1737046220059,1.05214973,712.86,712.63,0.48880399]
[1737046220254,1.05214973,712.86,712.06,1.04599289]
[1737046220460,1.05214973,712.86,712.07,0.48891474]
[1737046220752,1.05214973,712.85,712.08,0.48891474]
[1737046220957,1.05214973,712.85,712.09,0.48891474]
[1737046221259,1.05214973,712.85,712.1,0.48891474]
[1737046221462,1.05214973,712.85,712.11,0.48891474]
[1737046221657,1.05214973,712.85,712.12,0.48891474]
[1737046221860,1.05214973,712.85,712.13,0.48891474]
[1737046222059,1.05214973,712.85,712.05,1.04599289]
[1737046222060,1.05214973,712.71,712.14,0.48891474]
[1737046222255,1.05214973,712.71,712.15,0.48891474]
[1737046222454,1.05214973,712.71,712.16,0.48891474]
[1737046222660,1.05214973,712.71,712.17,0.48891474]
[1737046222858,1.05214973,712.76,712.18,0.48891474]
[1737046223059,1.05214973,712.76,712.19,0.48891474]
[1737046223262,1.05214973,712.76,712.2,0.48891474]
[1737046223561,1.05214973,712.76,712.21,0.48909862]
[1737046223761,1.05214973,712.76,712.22,0.48909862]
[1737046223956,1.05214973,712.76,712.23,0.48909862]
[1737046224157,1.05214973,712.76,712.24,0.48909862]
[1737046224356,1.05214973,712.76,711.82,0.2809699]
[1737046224357,1.05214973,712.8,712.25,0.48909862]
[1737046224554,1.05214973,712.8,712.26,0.48909862]
[1737046224761,1.05214973,712.8,712.27,0.48909862]
[1737046224960,1.05214973,712.8,712.28,0.48909862]
[1737046225163,1.05214973,712.82,712.29,0.48909862]
[1737046225360,1.05214973,712.82,711.82,0.2809699]
[1737046225361,1.05214973,712.82,712.3,0.48909862]
[1737046225558,1.05214973,712.82,712.31,0.48909862]
[1737046225757,1.05214973,712.82,712.32,0.48909862]
[1737046225955,1.05214973,712.82,712.33,0.48909862]
[1737046226163,1.05214973,712.82,711.82,0.2809699]
[1737046226164,1.05214973,712.82,712.34,0.48909862]
[1737046226463,0.2804813,713.06,712.35,0.48909862]
[1737046226464,1.05214973,712.84,712.35,0.48909862]
[1737046226664,1.05214973,712.84,712.36,0.48909862]
[1737046226968,1.05214973,712.84,712.37,0.48909862]
[1737046227156,1.05214973,712.85,712.38,0.48909862]
[1737046227462,1.05214973,712.85,712.39,0.48909862]
[1737046227659,1.05214973,712.85,712.4,0.48909862]
[1737046227863,1.05214973,712.85,712.41,0.48909862]
[1737046228062,1.05214973,712.85,712.42,0.48909862]
[1737046228262,1.05214973,712.85,712.43,0.48909862]
[1737046228459,1.05214973,712.85,711.82,0.2809699]
[1737046228460,1.05214973,712.89,712.44,0.48909862]
[1737046228665,1.05214973,712.89,712.45,0.48909862]
[1737046228863,1.05214973,712.89,712.46,0.48909862]
[1737046229059,1.05214973,712.89,711.82,0.2809699]
[1737046229259,1.05214973,712.89,711.83,0.74660352]
[1737046229565,1.05214973,712.86,711.84,0.74660352]
[1737046229766,1.05214973,712.86,711.85,0.74660352]
[1737046230065,1.05214973,712.86,711.86,0.74660352]
[1737046230265,1.05214973,712.86,711.87,0.74660352]
[1737046230565,1.05214973,712.86,711.88,0.48859495]
[1737046230764,1.05214973,712.86,711.89,0.48859495]
[1737046230959,1.05214973,712.86,711.9,0.48859495]
[1737046231164,1.05214973,712.86,711.91,0.48859495]
[1737046231364,1.05214973,712.86,711.92,0.48859495]
[1737046231558,1.05214973,712.86,711.93,0.48859495]
[1737046231761,1.05214973,712.86,711.94,0.48859495]
[1737046231962,1.05214973,712.86,711.95,0.48859495]
[1737046232164,1.05214973,712.86,711.96,0.48859495]
[1737046232366,1.05214973,712.86,711.97,0.48859495]
[1737046232661,1.05214973,712.86,711.98,0.48859495]
[1737046232862,1.05214973,712.86,711.99,0.48859495]
[1737046233167,1.05214973,712.8,712.0,0.48859495]
[1737046233365,1.05214973,712.8,712.01,0.48859495]
[1737046233562,1.05214973,712.8,712.02,0.48859495]
[1737046233769,1.05214973,712.8,712.03,0.48859495]
[1737046233969,1.05214973,712.8,712.04,0.48859495]
[1737046234269,1.05214973,712.81,712.05,0.48859495]
[1737046234463,1.05214973,712.81,712.06,0.48859495]
[1737046234766,1.05214973,712.81,712.07,0.48859495]
[1737046234968,1.05214973,712.81,712.08,0.48859495]
[1737046235172,1.05214973,712.81,712.09,0.48859495]
[1737046235468,1.05214973,712.81,704.98,5.38909226]
[1737046235469,1.05214973,712.69,712.1,0.48859495]
[1737046235669,1.05214973,712.69,712.11,0.48859495]
[1737046235864,1.05214973,712.69,712.12,0.48859495]
[1737046236063,1.05214973,712.69,712.13,0.48859495]
[1737046236264,1.05214973,712.69,712.14,0.48827524]
[1737046236469,1.05214973,712.69,711.11,1.04599289]
[1737046236470,1.05214973,712.75,711.4,1.04599289]
[1737046236670,1.05214973,712.75,711.41,0.74613548]
[1737046236867,1.05214973,712.75,711.42,0.74613548]
[1737046237071,1.05214973,712.75,711.43,0.74613548]
[1737046237266,1.05214973,712.75,711.44,0.74613548]
[1737046237469,1.05214973,712.75,711.45,0.74613548]
[1737046237667,1.05214973,712.76,711.46,0.74617234]
[1737046237868,1.05214973,712.76,711.47,0.48803208]
[1737046238069,1.05214973,712.76,711.48,0.48803208]
[1737046238270,1.05214973,712.76,711.49,0.48803208]
[1737046238465,1.05214973,712.76,711.34,1.04599289]
[1737046238466,1.05214973,712.72,711.5,0.48803208]
[1737046238673,1.05214973,712.72,711.51,0.48803208]
[1737046238869,1.05214973,712.72,711.52,0.48803208]
[1737046239065,1.05214973,712.72,711.53,0.48803208]
[1737046239265,1.05214973,712.72,711.54,0.48803208]
[1737046239466,1.05214973,712.78,711.55,0.48803208]
[1737046239669,1.05214973,712.78,711.56,0.48803208]
[1737046239870,1.05214973,712.78,711.57,0.48803208]
[1737046240070,1.05214973,712.78,711.58,0.48803208]
[1737046240267,1.05214973,712.78,711.59,0.48803208]
[1737046240474,1.46645176,712.77,711.6,0.48803208]
[1737046240669,1.46645176,712.77,711.12,1.04599289]
[1737046240670,1.05214973,712.7,711.61,0.48803208]
[1737046240866,1.05214973,712.7,711.62,0.48803208]
[1737046241172,1.05214973,712.7,711.63,0.48803208]
[1737046241369,1.05214973,712.7,711.64,0.48803208]
[1737046241673,1.05214973,712.7,710.49,1.25519146]
[1737046241674,1.05214973,712.75,711.65,0.48803208]
[1737046241873,1.05214973,712.75,711.66,0.48803208]
[1737046242071,1.05214973,712.75,711.67,0.48803208]
[1737046242271,1.05214973,712.75,711.68,0.48803208]
[1737046242472,1.46645176,712.77,711.69,0.48803208]
[1737046242672,0.28059936,712.76,711.7,0.48803208]
[1737046242973,0.28059936,712.76,711.71,0.48803208]
[1737046243273,0.28059936,712.76,711.72,0.48803208]
[1737046243468,0.28059936,712.76,711.73,0.48803208]
[1737046243670,0.28059936,712.76,711.74,0.48803208]
[1737046243872,0.28059936,712.76,711.75,0.48803208]
[1737046244072,0.28059936,712.76,711.76,0.48803208]
[1737046244274,0.28059936,712.76,710.92,1.04599289]
[1737046244275,0.28059936,712.76,711.77,0.48803208]
[1737046244569,0.28059936,712.76,711.78,0.48803208]
[1737046244774,0.28059936,712.76,711.79,0.48803208]
[1737046244974,0.28059936,712.76,711.8,0.48803208]
[1737046245275,0.28059936,712.76,711.81,0.48803208]
[1737046245477,0.28059936,712.76,711.82,0.48803208]
[1737046245673,0.28059936,712.76,711.83,0.48803208]
[1737046245874,0.28059936,712.76,711.84,0.48803208]
[1737046246075,0.28059936,712.76,711.85,0.48803208]
[1737046246277,0.28059936,712.76,711.86,0.48803208]
[1737046246474,0.28059936,712.76,711.87,0.48803208]
[1737046246670,0.28059936,712.76,711.88,0.48803208]
[1737046246875,0.28059936,712.76,710.88,1.04599289]
[1737046246876,0.28059936,712.76,711.89,0.48803208]
[1737046247076,0.28059936,712.76,711.9,0.48803208]
[1737046247277,0.28059936,712.76,711.91,0.48803208]
[1737046247473,0.28059936,712.76,711.92,0.48614179]
[1737046247677,0.28059936,712.76,710.88,1.04599289]
[1737046247878,0.28059936,712.76,711.01,1.04599289]
[1737046248080,0.28059936,712.76,711.03,0.28128208]
[1737046248277,0.28059936,712.76,711.04,1.34238873]
[1737046248575,0.28059936,712.76,711.06,0.28127021]
[1737046248778,0.28059936,712.76,711.07,1.342385]
[1737046249077,0.28059936,712.76,710.99,1.04599289]
[1737046249078,0.28059936,712.76,711.09,0.28125834]
[1737046249271,0.28059936,712.76,711.1,0.74424434]
[1737046249476,0.28059936,712.76,711.12,0.28124648]
[1737046249673,0.28059936,712.76,711.13,0.74424434]
[1737046249979,0.28059936,712.76,711.15,0.28123461]
[1737046250179,0.28059936,712.76,711.16,0.74424434]
[1737046250374,0.28059936,712.76,711.17,1.02547105]
[1737046250575,0.28059936,712.76,711.18,1.02546709]
[1737046250777,0.28059936,712.76,711.19,0.74424434]
[1737046250978,0.28059936,712.76,711.2,0.74424434]
[1737046251179,0.28059936,712.76,711.21,0.74424434]
[1737046251480,0.28059936,712.76,711.22,1.00237693]
[1737046251684,0.28059936,712.76,711.23,0.744248]
[1737046251978,0.28059936,712.76,711.24,0.48611889]
[1737046252274,0.28059936,712.76,711.25,0.74424316]
[1737046252478,0.28059936,712.76,711.26,0.74424316]
[1737046252679,0.28059936,712.76,711.27,0.74424316]
[1737046252875,0.28059936,712.76,711.28,0.74424316]
[1737046253081,0.28059936,712.76,711.29,0.74424316]
[1737046253380,0.28059936,712.76,711.3,0.74424316]
[1737046253580,0.28059936,712.76,711.22,0.25812893]
[1737046253581,0.28059936,712.76,711.31,0.74424316]
[1737046253777,0.28059936,712.76,711.32,0.74424316]
[1737046253981,0.28059936,712.76,711.33,0.74424316]
[1737046254182,0.28059936,712.76,711.34,0.74424316]
[1737046254382,0.28059936,712.76,711.35,0.74424316]
[1737046254578,0.28059936,712.76,711.36,0.74424316]
[1737046254883,0.28059936,712.76,711.22,0.25812893]
[1737046254884,0.28059936,712.76,711.37,0.74424316]
[1737046255077,0.28059936,712.76,711.38,1.02538685]
[1737046255277,0.28059936,712.76,711.39,0.74424316]
[1737046255480,0.28059936,712.76,711.4,1.02537894]
[1737046255680,0.28059936,712.76,711.41,0.74424316]
[1737046255883,0.28059936,712.76,711.42,0.74424316]
[1737046256083,0.28059936,712.76,711.43,0.48611889]
[1737046256278,0.28059936,712.76,711.44,0.74424316]
[1737046256481,0.28059936,712.76,711.45,0.74424316]
[1737046256682,0.28059936,712.76,711.46,0.74424316]
[1737046256883,0.28059936,712.76,711.47,0.74420695]
[1737046257184,0.28059936,712.76,711.48,0.74420695]
[1737046257380,0.28059936,712.76,711.49,0.74420695]
[1737046257580,0.28059936,712.76,711.5,0.74420695]
[1737046257879,0.28059936,712.76,711.51,0.74420695]
[1737046258077,0.28059936,712.76,711.52,0.74420695]
[1737046258276,0.28059936,712.76,711.53,0.48611889]
[1737046258481,0.28059936,712.76,711.54,0.48611889]
[1737046258780,0.28059936,712.76,711.55,0.48611889]
[1737046258981,0.28059936,712.76,711.56,0.48611889]
[1737046259179,0.28059936,712.76,711.57,0.48611889]
[1737046259378,0.28059936,712.76,711.58,0.48611889]
[1737046259582,0.28059936,712.76,711.59,0.48611889]
[1737046259880,0.28059936,712.76,711.6,0.48611889]
[1737046260083,0.28059936,712.76,711.41,0.28113183]
[1737046260084,0.28059936,712.76,711.61,0.48611889]
[1737046260286,0.28059936,712.76,711.62,0.48611889]
[1737046260484,0.28059936,712.76,711.63,0.48611889]
[1737046260684,0.28059936,712.76,711.64,0.48611889]
[1737046260984,1.05214973,712.75,711.65,0.48611889]
[1737046261385,1.05214973,712.75,711.66,0.48611889]
[1737046261680,1.05214973,712.68,711.67,0.48611889]
[1737046261983,1.05214973,712.68,711.68,0.48611889]
[1737046262177,1.05214973,712.68,711.69,0.48611889]
[1737046262382,1.05214973,712.68,711.7,0.48611889]
[1737046262683,1.05214973,712.68,711.41,0.28113183]
[1737046262884,1.05214973,712.68,711.42,0.4861885]
[1737046263080,0.28059936,712.76,711.43,0.4861885]
[1737046263081,1.05214973,712.58,711.43,0.4861885]
[1737046263384,1.05214973,712.58,711.44,0.4861885]
[1737046263684,1.05214973,712.58,711.45,0.4861885]
[1737046263888,1.05214973,712.58,711.46,0.4861885]
[1737046264178,1.05214973,712.58,711.47,0.4861885]
[1737046264384,1.05214973,712.58,711.48,0.4861885]
[1737046264585,1.05214973,712.58,711.49,0.4861885]
[1737046264783,1.05214973,712.57,711.5,0.4861885]
[1737046264987,1.05214973,712.57,711.51,0.4861885]
[1737046265183,1.05214973,712.57,711.52,0.4861885]
[1737046265384,1.05214973,712.57,711.53,0.4861885]
[1737046265686,1.4664775,712.66,711.54,0.4861885]
[1737046265687,1.05214973,712.53,711.54,0.4861885]
[1737046265984,1.05214973,712.53,711.55,0.4861885]
[1737046266177,1.05214973,712.53,711.41,0.28113183]
[1737046266178,1.05214973,712.53,711.56,0.4861885]
[1737046266382,1.05214973,712.53,711.57,0.4861885]
[1737046266585,1.05214973,712.53,711.58,0.4861885]
[1737046266786,1.05214973,712.52,711.59,0.4861885]
[1737046267081,1.05214973,712.52,711.6,0.4861885]
[1737046267280,1.05214973,712.52,711.61,0.47599115]
[1737046267478,1.05214973,712.52,711.41,0.28113183]
[1737046268089,1.4664775,712.66,711.41,0.28113183]
[1737046268090,1.05214973,712.41,711.41,0.28113183]
[1737046269184,1.05214973,712.33,711.41,0.28113183]
[1737046269881,1.05214973,712.33,711.05,1.04599289]
[1737046270086,1.05214973,712.37,711.06,0.25824014]
[1737046270991,1.05214973,712.42,711.06,0.25824014]
[1737046271684,1.05214973,712.42,711.05,0.28127417]
[1737046272284,1.05214973,712.43,711.06,0.25824755]
[1737046272590,1.05214973,712.43,711.05,0.28127417]
[1737046273498,1.4664775,712.66,711.05,0.28127417]
[1737046273499,1.05214973,712.51,711.05,0.28127417]
[1737046274084,1.46705451,712.5,711.05,0.28127417]
[1737046276390,1.46705451,712.5,711.06,0.25824446]
[1737046276984,1.05214973,712.59,711.06,0.25824446]
[1737046278194,1.05214973,712.73,711.06,0.25824446]
[1737046278391,1.46661656,712.7,711.06,0.25824446]
[1737046279393,1.46661656,712.7,711.07,0.48582485]
[1737046279593,1.46661656,712.7,711.08,0.74406931]
[1737046279795,1.46661656,712.7,711.09,0.74406931]
[1737046280092,1.46661656,712.7,711.1,0.74406931]
[1737046280295,1.46661656,712.7,711.11,0.74406931]
[1737046280492,1.46661656,712.7,711.12,0.74406931]
[1737046280686,1.46661656,712.7,711.13,0.74406931]
[1737046280886,1.46661656,712.7,711.14,0.48582485]
[1737046281091,1.46661656,712.7,711.15,0.74402051]
[1737046281287,1.46661656,712.7,711.16,0.74402051]
[1737046281492,1.46661656,712.7,711.17,0.74402051]
[1737046281694,1.46661656,712.7,711.18,1.02524326]
[1737046281894,1.46661656,712.7,711.19,0.74402051]
[1737046282193,1.46661656,712.7,711.2,0.48582485]
[1737046282387,1.46661656,712.7,711.18,0.28122275]
[1737046282388,1.46661656,712.7,711.21,0.48582485]
[1737046282593,1.46661656,712.7,711.22,0.48582485]
[1737046282895,1.46661656,712.7,711.23,0.48582485]
[1737046283195,2.51876629,712.7,711.24,0.74401181]
[1737046283395,2.51876629,712.7,711.25,0.74401181]
[1737046283691,0.28062692,712.69,711.26,0.74401243]
[1737046283888,0.28062692,712.69,711.27,0.74400724]
[1737046284089,1.05214973,712.63,711.28,0.74400724]
[1737046284291,1.05214973,712.63,711.29,0.74400724]
[1737046284494,1.05214973,712.63,711.3,0.74400724]
[1737046284692,1.05214973,712.63,711.31,0.74400724]
[1737046284891,1.05214973,712.63,711.32,0.74400724]
[1737046285095,1.05214973,712.63,711.33,0.74400724]
[1737046285299,1.05214973,712.65,711.34,0.74400724]
[1737046285496,1.05214973,712.65,711.35,0.74400724]
[1737046285697,1.05214973,712.65,711.36,0.48582485]
[1737046285897,1.05214973,712.65,711.37,0.48582485]
[1737046286198,1.05214973,712.65,711.38,0.48582485]
[1737046286391,1.05214973,712.65,711.39,0.48582485]
[1737046286592,0.28062692,712.69,711.26,0.25818758]
[1737046286593,1.05214973,712.64,711.4,0.48582485]
[1737046286796,1.05214973,712.64,711.41,0.48582485]
[1737046287001,1.05214973,712.64,711.42,0.48582485]
[1737046287194,1.05214973,712.64,711.43,0.48582485]
[1737046287399,1.05214973,712.64,711.44,0.48582485]
[1737046287600,0.28062692,712.69,711.45,0.48582485]
[1737046287799,0.28062692,712.69,711.46,0.48582485]
[1737046288100,0.28062692,712.69,711.47,0.48582485]
[1737046288304,0.28062692,712.69,711.48,0.48582485]
[1737046288501,0.28062692,712.69,711.49,0.48582485]
[1737046288801,0.28062692,712.69,711.5,0.48582485]
[1737046289004,0.28062692,712.69,711.51,0.48582485]
[1737046289201,0.28062692,712.69,711.52,0.48582485]
[1737046289400,0.28062692,712.69,711.53,0.48582485]
[1737046289600,0.28062692,712.69,711.54,0.48582485]
[1737046289797,0.28062692,712.69,711.55,0.48582485]
[1737046289997,0.28062692,712.69,711.56,0.48582485]